[Event "Titled Tuesday Blitz July 4 Late 2023"]
[White "D`Arruda, Ricardo D."]
[Black "Taranenko, Evgueniy"]
[WhiteFideId "100692"]
[BlackFideId "14122138"]
[WhiteElo "2565"]
[BlackElo "2384"]
[Result "1/2-1/2"]
[Round "6"]
[TimeControl "180+2"]
[Date "2023.07.04"]
[WhiteClock "0:01:06"]
[BlackClock "0:00:23"]
[Board "70"]

1. Nf3 {[%clk 0:02:54]}  f5 {[%clk 0:02:59]} 2. d3 {[%clk 0:02:54]}  d5 {[%clk 0:02:58]} 3. g3 {[%clk 0:02:55]}  Nf6 {[%clk 0:02:57]} 4. Bg2 {[%clk 0:02:55]}  c5 {[%clk 0:02:58]} 5. O-O {[%clk 0:02:56]}  Nc6 {[%clk 0:02:58]} 6. Nbd2 {[%clk 0:02:56]}  e5 {[%clk 0:02:42]} 7. e4 {[%clk 0:02:55]}  fxe4 {[%clk 0:02:43]} 8. dxe4 {[%clk 0:02:55]}  d4 {[%clk 0:02:44]} 9. Nh4 {[%clk 0:02:54]}  Bd6 {[%clk 0:02:43]} 10. Nf5 {[%clk 0:02:52]}  Bxf5 {[%clk 0:02:41]} 11. exf5 {[%clk 0:02:53]}  O-O {[%clk 0:02:41]} 12. Ne4 {[%clk 0:02:52]}  Qd7 {[%clk 0:02:20]} 13. g4 {[%clk 0:02:44]}  Ne7 {[%clk 0:02:16]} 14. Nxd6 {[%clk 0:02:41]}  Qxd6 {[%clk 0:02:15]} 15. Bxb7 {[%clk 0:02:41]}  e4 {[%clk 0:02:07]} 16. Bxa8 {[%clk 0:02:38]}  Rxa8 {[%clk 0:02:08]} 17. h3 {[%clk 0:02:33]}  h5 {[%clk 0:02:06]} 18. Bg5 {[%clk 0:02:24]}  hxg4 {[%clk 0:02:02]} 19. hxg4 {[%clk 0:02:25]}  Ned5 {[%clk 0:01:58]} 20. c3 {[%clk 0:02:04]}  Kf7 {[%clk 0:01:44]} 21. cxd4 {[%clk 0:02:01]}  Rh8 {[%clk 0:01:43]} 22. f4 {[%clk 0:01:58]}  exf3 {[%clk 0:01:42]} 23. Rxf3 {[%clk 0:01:44]}  Qh2+ {[%clk 0:01:23]} 24. Kf1 {[%clk 0:01:43]}  Ne4 {[%clk 0:01:08]} 25. Qb3 {[%clk 0:01:20]}  Qh1+ {[%clk 0:01:02]} 26. Ke2 {[%clk 0:01:20]}  Qg2+ {[%clk 0:01:01]} 27. Kd3 {[%clk 0:01:16]}  Qxf3+ {[%clk 0:01:01]} 28. Kc4 {[%clk 0:01:17]}  Nb6+ {[%clk 0:00:50]} 29. Kb5+ {[%clk 0:01:13]}  Qxb3+ {[%clk 0:00:46]} 30. axb3 {[%clk 0:01:14]}  Nxg5 {[%clk 0:00:45]} 31. Rxa7+ {[%clk 0:01:14]}  Kf6 {[%clk 0:00:43]} 32. dxc5 {[%clk 0:01:12]}  Nd5 {[%clk 0:00:42]} 33. c6 {[%clk 0:01:11]}  Rc8 {[%clk 0:00:38]} 34. Kc5 {[%clk 0:01:09]}  Ne7 {[%clk 0:00:38]} 35. Ra6 {[%clk 0:01:08]}  Ne4+ {[%clk 0:00:32]} 36. Kd4 {[%clk 0:01:07]}  Rxc6 {[%clk 0:00:29]} 37. Rxc6+ {[%clk 0:01:06]}  Nxc6+ {[%clk 0:00:30]} 38. Kxe4 {[%clk 0:01:07]}  Kg5 {[%clk 0:00:29]} 39. Kd5 {[%clk 0:01:06]}  Nb4+ {[%clk 0:00:27]} 40. Ke6 {[%clk 0:01:05]}  Kxg4 {[%clk 0:00:24]} 41. f6 {[%clk 0:01:06]}  gxf6 {[%clk 0:00:24]} 42. Kxf6 {[%clk 0:01:06]}  Kf4 {[%clk 0:00:25]} 43. Ke6 {[%clk 0:01:07]}  Ke4 {[%clk 0:00:25]} 44. Kd6 {[%clk 0:01:07]}  Nd3 {[%clk 0:00:25]} 45. Kc6 {[%clk 0:01:05]}  Kd4 {[%clk 0:00:23]} 46. b4 {[%clk 0:01:06]}  Nxb4+ {[%clk 0:00:23]} 47. Kb5 {[%clk 0:01:06]}  Nd5 {[%clk 0:00:24]} 48. b4 {[%clk 0:01:06]}  Nxb4 {[%clk 0:00:23]} 1/2-1/2


[Site "https://www.chess.com"]

[Event "Titled Tuesday Blitz July 4 Late 2023"]
[White "Gerbelli Neto, Eduardo"]
[Black "Bruedigam, Martin"]
[WhiteFideId "2103281"]
[BlackFideId "24608033"]
[WhiteElo "2325"]
[BlackElo "2556"]
[Result "0-1"]
[Round "6"]
[TimeControl "180+2"]
[Date "2023.07.04"]
[WhiteClock "0:00:08"]
[BlackClock "0:00:11"]
[Board "73"]

1. e4 {[%clk 0:03:00]}  e5 {[%clk 0:02:59]} 2. Nf3 {[%clk 0:02:59]}  Nc6 {[%clk 0:02:59]} 3. d4 {[%clk 0:02:58]}  exd4 {[%clk 0:02:58]} 4. Bc4 {[%clk 0:02:58]}  Bc5 {[%clk 0:02:56]} 5. c3 {[%clk 0:02:58]}  Nf6 {[%clk 0:02:56]} 6. cxd4 {[%clk 0:02:56]}  Bb4+ {[%clk 0:02:55]} 7. Nc3 {[%clk 0:02:56]}  Nxe4 {[%clk 0:02:54]} 8. O-O {[%clk 0:02:56]}  Bxc3 {[%clk 0:02:52]} 9. d5 {[%clk 0:02:56]}  Bf6 {[%clk 0:02:46]} 10. Re1 {[%clk 0:02:55]}  Ne7 {[%clk 0:02:44]} 11. Rxe4 {[%clk 0:02:54]}  d6 {[%clk 0:02:44]} 12. Bg5 {[%clk 0:02:36]}  Bxg5 {[%clk 0:02:42]} 13. Nxg5 {[%clk 0:02:36]}  h6 {[%clk 0:02:42]} 14. Qe2 {[%clk 0:02:30]}  hxg5 {[%clk 0:02:42]} 15. Re1 {[%clk 0:02:20]}  Be6 {[%clk 0:02:42]} 16. dxe6 {[%clk 0:02:21]}  f6 {[%clk 0:02:43]} 17. Re3 {[%clk 0:02:05]}  g6 {[%clk 0:02:42]} 18. Rh3 {[%clk 0:02:00]}  Rxh3 {[%clk 0:02:42]} 19. gxh3 {[%clk 0:02:01]}  c6 {[%clk 0:02:42]} 20. Qf3 {[%clk 0:01:57]}  Qa5 {[%clk 0:02:38]} 21. Rd1 {[%clk 0:01:37]}  Qe5 {[%clk 0:02:35]} 22. b4 {[%clk 0:01:30]}  d5 {[%clk 0:02:24]} 23. Bd3 {[%clk 0:01:23]}  Qxe6 {[%clk 0:02:23]} 24. b5 {[%clk 0:01:23]}  c5 {[%clk 0:01:48]} 25. Kf1 {[%clk 0:01:21]}  O-O-O {[%clk 0:01:26]} 26. Re1 {[%clk 0:01:16]}  Qd6 {[%clk 0:01:26]} 27. a4 {[%clk 0:01:09]}  Rd7 {[%clk 0:01:20]} 28. a5 {[%clk 0:01:04]}  c4 {[%clk 0:01:11]} 29. Bc2 {[%clk 0:00:53]}  d4 {[%clk 0:00:58]} 30. a6 {[%clk 0:00:47]}  d3 {[%clk 0:00:58]} 31. axb7+ {[%clk 0:00:40]}  Rxb7 {[%clk 0:00:59]} 32. Ba4 {[%clk 0:00:41]}  c3 {[%clk 0:00:52]} 33. Rd1 {[%clk 0:00:30]}  c2 {[%clk 0:00:48]} 34. Bxc2 {[%clk 0:00:29]}  dxc2 {[%clk 0:00:47]} 35. Rxd6 {[%clk 0:00:23]}  c1=Q+ {[%clk 0:00:47]} 36. Kg2 {[%clk 0:00:23]}  f5 {[%clk 0:00:25]} 37. Qe2 {[%clk 0:00:19]}  Rd7 {[%clk 0:00:13]} 38. Qe6 {[%clk 0:00:18]}  Qc7 {[%clk 0:00:13]} 39. b6 {[%clk 0:00:15]}  Qxd6 {[%clk 0:00:12]} 40. bxa7 {[%clk 0:00:12]}  Qxe6 {[%clk 0:00:10]} 41. a8=Q+ {[%clk 0:00:12]}  Kc7 {[%clk 0:00:11]} 42. Qa7+ {[%clk 0:00:12]}  Kd6 {[%clk 0:00:11]} 43. Qd4+ {[%clk 0:00:08]}  Nd5 {[%clk 0:00:11]} 0-1


[Site "https://www.chess.com"]

[Event "Titled Tuesday Blitz July 4 Late 2023"]
[White "Fantastic_Power"]
[Black "Reprintsev, Alexander"]
[BlackFideId "14100541"]
[WhiteElo "2650"]
[BlackElo "2489"]
[Result "1-0"]
[Round "6"]
[TimeControl "180+2"]
[Date "2023.07.04"]
[WhiteClock "0:00:08"]
[BlackClock "0:00:17"]
[Board "78"]

1. d4 {[%clk 0:02:48]}  d5 {[%clk 0:02:53]} 2. c4 {[%clk 0:02:48]}  e5 {[%clk 0:02:53]} 3. e3 {[%clk 0:02:44]}  exd4 {[%clk 0:02:52]} 4. exd4 {[%clk 0:02:45]}  Nf6 {[%clk 0:02:52]} 5. Nc3 {[%clk 0:02:44]}  Nc6 {[%clk 0:02:49]} 6. Be2 {[%clk 0:02:33]}  dxc4 {[%clk 0:02:44]} 7. Be3 {[%clk 0:02:32]}  Nd5 {[%clk 0:02:38]} 8. Bxc4 {[%clk 0:02:21]}  Nxe3 {[%clk 0:02:34]} 9. fxe3 {[%clk 0:02:22]}  Qh4+ {[%clk 0:02:29]} 10. g3 {[%clk 0:02:21]}  Qg4 {[%clk 0:02:28]} 11. Nf3 {[%clk 0:01:54]}  Bd6 {[%clk 0:02:14]} 12. O-O {[%clk 0:01:37]}  O-O {[%clk 0:01:58]} 13. Qd2 {[%clk 0:01:35]}  Bd7 {[%clk 0:01:51]} 14. Rae1 {[%clk 0:01:18]}  Rae8 {[%clk 0:01:50]} 15. Be2 {[%clk 0:01:12]}  Bxg3 {[%clk 0:01:39]} 16. hxg3 {[%clk 0:01:13]}  Qxg3+ {[%clk 0:01:39]} 17. Kh1 {[%clk 0:01:09]}  Re6 {[%clk 0:01:38]} 18. Nh2 {[%clk 0:01:08]}  Rh6 {[%clk 0:01:37]} 19. Bf3 {[%clk 0:01:01]}  Re8 {[%clk 0:01:09]} 20. Qg2 {[%clk 0:00:53]}  Qh4 {[%clk 0:01:04]} 21. Rg1 {[%clk 0:00:36]}  Rg6 {[%clk 0:01:01]} 22. Qd2 {[%clk 0:00:37]}  Ne7 {[%clk 0:00:51]} 23. Be4 {[%clk 0:00:27]}  Nf5 {[%clk 0:00:46]} 24. Rxg6 {[%clk 0:00:19]}  hxg6 {[%clk 0:00:43]} 25. Bxf5 {[%clk 0:00:19]}  Bxf5 {[%clk 0:00:43]} 26. e4 {[%clk 0:00:19]}  Bh3 {[%clk 0:00:40]} 27. Qe3 {[%clk 0:00:13]}  c5 {[%clk 0:00:37]} 28. d5 {[%clk 0:00:09]}  b6 {[%clk 0:00:37]} 29. a4 {[%clk 0:00:08]}  Re5 {[%clk 0:00:36]} 30. Rg1 {[%clk 0:00:08]}  Bd7 {[%clk 0:00:29]} 31. Qg3 {[%clk 0:00:07]}  Rxe4 {[%clk 0:00:23]} 32. Nxe4 {[%clk 0:00:07]}  Qxe4+ {[%clk 0:00:24]} 33. Qf3 {[%clk 0:00:06]}  Qxa4 {[%clk 0:00:22]} 34. Re1 {[%clk 0:00:05]}  Bf5 {[%clk 0:00:20]} 35. d6 {[%clk 0:00:04]}  Kh7 {[%clk 0:00:17]} 36. Qg3 {[%clk 0:00:04]}  Be4+ {[%clk 0:00:16]} 37. Kg1 {[%clk 0:00:04]}  Qd4+ {[%clk 0:00:15]} 38. Qe3 {[%clk 0:00:04]}  Qxe3+ {[%clk 0:00:15]} 39. Rxe3 {[%clk 0:00:05]}  Bc6 {[%clk 0:00:15]} 40. Re7 {[%clk 0:00:05]}  f6 {[%clk 0:00:15]} 41. d7 {[%clk 0:00:06]}  Bxd7 {[%clk 0:00:15]} 42. Rxd7 {[%clk 0:00:07]}  a5 {[%clk 0:00:15]} 43. Rb7 {[%clk 0:00:08]}  b5 {[%clk 0:00:16]} 44. Rxb5 {[%clk 0:00:08]}  g5 {[%clk 0:00:16]} 45. Rxc5 {[%clk 0:00:09]}  Kg6 {[%clk 0:00:17]} 46. Rxa5 {[%clk 0:00:09]}  f5 {[%clk 0:00:18]} 47. b4 {[%clk 0:00:10]}  g4 {[%clk 0:00:18]} 48. b5 {[%clk 0:00:10]}  Kg5 {[%clk 0:00:19]} 49. b6 {[%clk 0:00:11]}  Kh4 {[%clk 0:00:18]} 50. Rxf5 {[%clk 0:00:10]}  g3 {[%clk 0:00:19]} 51. b7 {[%clk 0:00:09]}  g6 {[%clk 0:00:20]} 52. Rb5 {[%clk 0:00:08]}  Kh3 {[%clk 0:00:20]} 53. Nf1 {[%clk 0:00:08]}  g2 {[%clk 0:00:17]} 54. Rb3+ {[%clk 0:00:08]} 1-0


[Site "https://www.chess.com"]

[Event "Titled Tuesday Blitz July 4 Late 2023"]
[White "marik_spb"]
[Black "Di Berardino, Diego Rafael"]
[BlackFideId "2105446"]
[WhiteElo "2506"]
[BlackElo "2614"]
[Result "0-1"]
[Round "6"]
[TimeControl "180+2"]
[Date "2023.07.04"]
[WhiteClock "0:00:00"]
[BlackClock "0:00:19"]
[Board "79"]

1. d4 {[%clk 0:02:58]}  Nf6 {[%clk 0:02:55]} 2. c4 {[%clk 0:02:58]}  g6 {[%clk 0:02:56]} 3. Nc3 {[%clk 0:02:57]}  d5 {[%clk 0:02:55]} 4. cxd5 {[%clk 0:02:56]}  Nxd5 {[%clk 0:02:54]} 5. e4 {[%clk 0:02:57]}  Nxc3 {[%clk 0:02:54]} 6. bxc3 {[%clk 0:02:58]}  Bg7 {[%clk 0:02:55]} 7. Nf3 {[%clk 0:02:58]}  c5 {[%clk 0:02:54]} 8. Be3 {[%clk 0:02:59]}  Qa5 {[%clk 0:02:53]} 9. Qd2 {[%clk 0:02:55]}  Nc6 {[%clk 0:02:51]} 10. Be2 {[%clk 0:02:33]}  Bg4 {[%clk 0:02:27]} 11. e5 {[%clk 0:02:21]}  Rd8 {[%clk 0:02:10]} 12. Rd1 {[%clk 0:02:18]}  Bxf3 {[%clk 0:01:53]} 13. Bxf3 {[%clk 0:02:16]}  Nxe5 {[%clk 0:01:50]} 14. Bxb7 {[%clk 0:02:13]}  O-O {[%clk 0:01:41]} 15. O-O {[%clk 0:02:06]}  Nc4 {[%clk 0:01:30]} 16. Qe2 {[%clk 0:01:49]}  Nxe3 {[%clk 0:01:26]} 17. Qxe3 {[%clk 0:01:38]}  cxd4 {[%clk 0:01:26]} 18. cxd4 {[%clk 0:01:39]}  e6 {[%clk 0:01:20]} 19. Qd2 {[%clk 0:00:56]}  Qb6 {[%clk 0:01:13]} 20. Rb1 {[%clk 0:00:51]}  Qxd4 {[%clk 0:01:13]} 21. Qxd4 {[%clk 0:00:51]}  Rxd4 {[%clk 0:01:08]} 22. Rfd1 {[%clk 0:00:50]}  Rfd8 {[%clk 0:01:03]} 23. Rxd4 {[%clk 0:00:49]}  Rxd4 {[%clk 0:01:04]} 24. f3 {[%clk 0:00:25]}  Rd2 {[%clk 0:01:03]} 25. a4 {[%clk 0:00:24]}  Bd4+ {[%clk 0:01:00]} 26. Kh1 {[%clk 0:00:24]}  h5 {[%clk 0:00:59]} 27. Bc6 {[%clk 0:00:23]}  h4 {[%clk 0:00:54]} 28. h3 {[%clk 0:00:15]}  Ra2 {[%clk 0:00:51]} 29. Bb5 {[%clk 0:00:13]}  Kg7 {[%clk 0:00:50]} 30. Bc6 {[%clk 0:00:12]}  e5 {[%clk 0:00:48]} 31. Bd7 {[%clk 0:00:10]}  f5 {[%clk 0:00:45]} 32. Bc6 {[%clk 0:00:10]}  Kf6 {[%clk 0:00:44]} 33. Be8 {[%clk 0:00:08]}  Kg5 {[%clk 0:00:35]} 34. Rc1 {[%clk 0:00:06]}  e4 {[%clk 0:00:29]} 35. fxe4 {[%clk 0:00:05]}  fxe4 {[%clk 0:00:30]} 36. Re1 {[%clk 0:00:05]}  Bf2 {[%clk 0:00:25]} 37. Bf7 {[%clk 0:00:01]}  Rb2 {[%clk 0:00:20]} 38. Rd1 {[%clk 0:00:00]}  e3 {[%clk 0:00:19]} 0-1


[Site "https://www.chess.com"]

[Event "Titled Tuesday Blitz July 4 Late 2023"]
[White "Sun, Rick"]
[Black "Shapiro, Viktor"]
[WhiteFideId "30909481"]
[BlackFideId "4175700"]
[WhiteElo "2599"]
[BlackElo "2461"]
[Result "0-1"]
[Round "6"]
[TimeControl "180+2"]
[Date "2023.07.04"]
[WhiteClock "0:00:00"]
[BlackClock "0:01:13"]
[Board "80"]

1. e4 {[%clk 0:03:00]}  c5 {[%clk 0:02:57]} 2. Nf3 {[%clk 0:03:00]}  d6 {[%clk 0:02:57]} 3. d4 {[%clk 0:03:01]}  cxd4 {[%clk 0:02:57]} 4. Nxd4 {[%clk 0:03:02]}  Nf6 {[%clk 0:02:58]} 5. Nc3 {[%clk 0:03:02]}  a6 {[%clk 0:02:58]} 6. Bg5 {[%clk 0:03:02]}  e6 {[%clk 0:02:58]} 7. f3 {[%clk 0:03:02]}  Qc7 {[%clk 0:02:53]} 8. Qd2 {[%clk 0:03:01]}  Nbd7 {[%clk 0:02:51]} 9. O-O-O {[%clk 0:03:01]}  Be7 {[%clk 0:02:50]} 10. Kb1 {[%clk 0:03:00]}  b5 {[%clk 0:02:49]} 11. g4 {[%clk 0:03:00]}  Bb7 {[%clk 0:02:45]} 12. h4 {[%clk 0:02:58]}  b4 {[%clk 0:02:39]} 13. Nce2 {[%clk 0:02:57]}  d5 {[%clk 0:02:22]} 14. exd5 {[%clk 0:02:31]}  Bxd5 {[%clk 0:02:22]} 15. Nf4 {[%clk 0:02:26]}  h6 {[%clk 0:02:12]} 16. Nxd5 {[%clk 0:02:24]}  Nxd5 {[%clk 0:02:12]} 17. Bxe7 {[%clk 0:02:20]}  Nxe7 {[%clk 0:02:11]} 18. Bd3 {[%clk 0:02:06]}  Nc5 {[%clk 0:02:04]} 19. g5 {[%clk 0:01:54]}  Nd5 {[%clk 0:01:58]} 20. g6 {[%clk 0:01:33]}  O-O {[%clk 0:01:57]} 21. gxf7+ {[%clk 0:01:28]}  Rxf7 {[%clk 0:01:57]} 22. Bg6 {[%clk 0:00:56]}  Rd7 {[%clk 0:01:45]} 23. Rhg1 {[%clk 0:00:44]}  Nf4 {[%clk 0:01:43]} 24. Qe3 {[%clk 0:00:22]}  Rad8 {[%clk 0:01:39]} 25. Rg4 {[%clk 0:00:15]}  e5 {[%clk 0:01:38]} 26. Rdg1 {[%clk 0:00:04]}  Rxd4 {[%clk 0:01:28]} 27. Bd3 {[%clk 0:00:05]}  R4d7 {[%clk 0:01:27]} 28. Bc4+ {[%clk 0:00:04]}  Kh8 {[%clk 0:01:25]} 29. b3 {[%clk 0:00:01]}  Rd1+ {[%clk 0:01:24]} 30. Kb2 {[%clk 0:00:01]}  Rxg1 {[%clk 0:01:23]} 31. Rxg1 {[%clk 0:00:02]}  Qd6 {[%clk 0:01:22]} 32. Qf2 {[%clk 0:00:02]}  e4 {[%clk 0:01:17]} 33. a3 {[%clk 0:00:01]}  Qe5+ {[%clk 0:01:16]} 34. Ka2 {[%clk 0:00:01]}  a5 {[%clk 0:01:16]} 35. Rg4 {[%clk 0:00:01]}  Rf8 {[%clk 0:01:15]} 36. fxe4 {[%clk 0:00:01]}  Nxe4 {[%clk 0:01:15]} 37. Qa7 {[%clk 0:00:01]}  Nc3+ {[%clk 0:01:14]} 38. Ka1 {[%clk 0:00:00]}  Nb5+ {[%clk 0:01:13]} 0-1


[Site "https://www.chess.com"]

[Event "Titled Tuesday Blitz July 4 Late 2023"]
[White "Jaskolka, Tomasz"]
[Black "Mickiewicz, Piotr"]
[WhiteFideId "1170791"]
[BlackFideId "1114891"]
[WhiteElo "2574"]
[BlackElo "2433"]
[Result "1-0"]
[Round "6"]
[TimeControl "180+2"]
[Date "2023.07.04"]
[WhiteClock "0:00:04"]
[BlackClock "0:00:00"]
[Board "82"]

1. d4 {[%clk 0:03:00]}  c5 {[%clk 0:02:56]} 2. d5 {[%clk 0:03:00]}  e6 {[%clk 0:02:56]} 3. c4 {[%clk 0:03:00]}  exd5 {[%clk 0:02:55]} 4. cxd5 {[%clk 0:03:01]}  d6 {[%clk 0:02:56]} 5. Nc3 {[%clk 0:03:01]}  a6 {[%clk 0:02:56]} 6. a4 {[%clk 0:03:01]}  g6 {[%clk 0:02:56]} 7. g3 {[%clk 0:03:01]}  Bg7 {[%clk 0:02:57]} 8. Bg2 {[%clk 0:03:02]}  Nf6 {[%clk 0:02:57]} 9. Nf3 {[%clk 0:03:02]}  O-O {[%clk 0:02:57]} 10. O-O {[%clk 0:03:03]}  Nbd7 {[%clk 0:02:52]} 11. Bf4 {[%clk 0:02:54]}  Ne8 {[%clk 0:02:43]} 12. Re1 {[%clk 0:02:50]}  Rb8 {[%clk 0:02:28]} 13. a5 {[%clk 0:02:48]}  b5 {[%clk 0:02:28]} 14. axb6 {[%clk 0:02:48]}  Rxb6 {[%clk 0:02:26]} 15. Qc2 {[%clk 0:02:41]}  Qc7 {[%clk 0:02:11]} 16. Nd2 {[%clk 0:02:39]}  Rb4 {[%clk 0:02:09]} 17. Ra4 {[%clk 0:02:29]}  Nb6 {[%clk 0:01:51]} 18. Ra2 {[%clk 0:02:22]}  Nf6 {[%clk 0:01:44]} 19. e4 {[%clk 0:02:19]}  Nfd7 {[%clk 0:01:42]} 20. Bf1 {[%clk 0:02:01]}  c4 {[%clk 0:01:42]} 21. Na4 {[%clk 0:01:39]}  Re8 {[%clk 0:01:15]} 22. Rc1 {[%clk 0:01:38]}  Nxa4 {[%clk 0:00:25]} 23. Rxa4 {[%clk 0:01:38]}  Rxb2 {[%clk 0:00:26]} 24. Qxc4 {[%clk 0:01:21]}  Qb8 {[%clk 0:00:22]} 25. Qc7 {[%clk 0:01:11]}  Be5 {[%clk 0:00:17]} 26. Bxe5 {[%clk 0:01:05]}  Nxe5 {[%clk 0:00:16]} 27. Qxb8 {[%clk 0:01:05]}  Rxb8 {[%clk 0:00:16]} 28. f4 {[%clk 0:00:58]}  Ng4 {[%clk 0:00:12]} 29. Bxa6 {[%clk 0:00:43]}  Bxa6 {[%clk 0:00:13]} 30. Rxa6 {[%clk 0:00:43]}  Rb2 {[%clk 0:00:14]} 31. Nc4 {[%clk 0:00:30]}  Rxh2 {[%clk 0:00:13]} 32. Nxd6 {[%clk 0:00:28]}  Rb8 {[%clk 0:00:14]} 33. Rc8+ {[%clk 0:00:25]}  Rxc8 {[%clk 0:00:14]} 34. Nxc8 {[%clk 0:00:26]}  Re2 {[%clk 0:00:14]} 35. e5 {[%clk 0:00:25]}  Re1+ {[%clk 0:00:12]} 36. Kg2 {[%clk 0:00:25]}  Rd1 {[%clk 0:00:13]} 37. d6 {[%clk 0:00:24]}  h5 {[%clk 0:00:13]} 38. Ne7+ {[%clk 0:00:23]}  Kg7 {[%clk 0:00:13]} 39. f5 {[%clk 0:00:18]}  Nxe5 {[%clk 0:00:11]} 40. fxg6 {[%clk 0:00:16]}  fxg6 {[%clk 0:00:11]} 41. Ra5 {[%clk 0:00:11]}  Kf6 {[%clk 0:00:10]} 42. Nd5+ {[%clk 0:00:10]}  Ke6 {[%clk 0:00:09]} 43. Ne3 {[%clk 0:00:07]}  Rd2+ {[%clk 0:00:09]} 44. Kh3 {[%clk 0:00:06]}  Nf3 {[%clk 0:00:07]} 45. Ng2 {[%clk 0:00:03]}  Rxd6 {[%clk 0:00:04]} 46. Nf4+ {[%clk 0:00:03]}  Kf6 {[%clk 0:00:04]} 47. g4 {[%clk 0:00:03]}  Ng5+ {[%clk 0:00:03]} 48. Kh4 {[%clk 0:00:04]}  Nf3+ {[%clk 0:00:00]} 49. Kg3 {[%clk 0:00:04]} 1-0


[Site "https://www.chess.com"]

[Event "Titled Tuesday Blitz July 4 Late 2023"]
[White "Ozates, Tuna"]
[Black "Omariev, Maksim"]
[WhiteFideId "6354521"]
[BlackFideId "4193423"]
[WhiteElo "2560"]
[BlackElo "2426"]
[Result "1/2-1/2"]
[Round "6"]
[TimeControl "180+2"]
[Date "2023.07.04"]
[WhiteClock "0:00:03"]
[BlackClock "0:00:02"]
[Board "86"]

1. e4 {[%clk 0:03:00]}  c5 {[%clk 0:03:00]} 2. Nf3 {[%clk 0:02:59]}  d6 {[%clk 0:03:00]} 3. d4 {[%clk 0:02:58]}  cxd4 {[%clk 0:03:00]} 4. Nxd4 {[%clk 0:02:58]}  Nf6 {[%clk 0:03:00]} 5. Nc3 {[%clk 0:02:59]}  a6 {[%clk 0:03:00]} 6. Be2 {[%clk 0:02:59]}  e6 {[%clk 0:02:59]} 7. O-O {[%clk 0:02:57]}  Be7 {[%clk 0:02:56]} 8. Be3 {[%clk 0:02:55]}  O-O {[%clk 0:02:55]} 9. f4 {[%clk 0:02:55]}  Qc7 {[%clk 0:02:55]} 10. Kh1 {[%clk 0:02:55]}  b5 {[%clk 0:02:53]} 11. a3 {[%clk 0:02:55]}  Bb7 {[%clk 0:02:52]} 12. Bf3 {[%clk 0:02:56]}  Nbd7 {[%clk 0:02:52]} 13. Qe1 {[%clk 0:02:55]}  Nc5 {[%clk 0:02:49]} 14. Bg1 {[%clk 0:02:48]}  Rfd8 {[%clk 0:02:42]} 15. Rd1 {[%clk 0:02:43]}  Rac8 {[%clk 0:02:39]} 16. g4 {[%clk 0:02:33]}  d5 {[%clk 0:02:24]} 17. exd5 {[%clk 0:02:26]}  Nxd5 {[%clk 0:02:16]} 18. Nxd5 {[%clk 0:02:25]}  Bxd5 {[%clk 0:02:15]} 19. Bxd5 {[%clk 0:02:23]}  Rxd5 {[%clk 0:02:16]} 20. f5 {[%clk 0:01:50]}  Qb7 {[%clk 0:00:32]} 21. Nf3 {[%clk 0:01:38]}  Rxd1 {[%clk 0:00:30]} 22. Qxd1 {[%clk 0:01:37]}  exf5 {[%clk 0:00:31]} 23. gxf5 {[%clk 0:01:37]}  Ne4 {[%clk 0:00:25]} 24. Bd4 {[%clk 0:01:33]}  Ng5 {[%clk 0:00:22]} 25. Kg1 {[%clk 0:01:28]}  Nxf3+ {[%clk 0:00:17]} 26. Rxf3 {[%clk 0:01:29]}  Rxc2 {[%clk 0:00:16]} 27. Rg3 {[%clk 0:01:07]}  Qc6 {[%clk 0:00:08]} 28. Bxg7 {[%clk 0:00:52]}  Bc5+ {[%clk 0:00:08]} 29. Bd4+ {[%clk 0:00:41]}  Kf8 {[%clk 0:00:08]} 30. b4 {[%clk 0:00:11]}  Rc1 {[%clk 0:00:08]} 31. Bxc5+ {[%clk 0:00:07]}  Qxc5+ {[%clk 0:00:08]} 32. bxc5 {[%clk 0:00:07]}  Rxd1+ {[%clk 0:00:09]} 33. Kf2 {[%clk 0:00:05]}  Rd5 {[%clk 0:00:08]} 34. Rc3 {[%clk 0:00:04]}  Rxf5+ {[%clk 0:00:08]} 35. Ke3 {[%clk 0:00:04]}  Ke7 {[%clk 0:00:09]} 36. Kd4 {[%clk 0:00:04]}  Kd7 {[%clk 0:00:09]} 37. Rh3 {[%clk 0:00:04]}  h5 {[%clk 0:00:09]} 38. Re3 {[%clk 0:00:02]}  f6 {[%clk 0:00:08]} 39. Rg3 {[%clk 0:00:02]}  Kc6 {[%clk 0:00:07]} 40. Rg6 {[%clk 0:00:02]}  Rf4+ {[%clk 0:00:07]} 41. Ke3 {[%clk 0:00:03]}  Rf5 {[%clk 0:00:08]} 42. Ke4 {[%clk 0:00:03]}  Re5+ {[%clk 0:00:08]} 43. Kf4 {[%clk 0:00:04]}  Kxc5 {[%clk 0:00:08]} 44. Rxf6 {[%clk 0:00:04]}  Rd5 {[%clk 0:00:07]} 45. Rxa6 {[%clk 0:00:04]}  Kc4 {[%clk 0:00:02]} 46. h4 {[%clk 0:00:04]}  Kb3 {[%clk 0:00:02]} 47. Ra8 {[%clk 0:00:03]}  Rc5 {[%clk 0:00:03]} 48. Ra5 {[%clk 0:00:02]}  Kb2 {[%clk 0:00:02]} 49. Ra6 {[%clk 0:00:02]}  Rc4+ {[%clk 0:00:02]} 50. Kg5 {[%clk 0:00:02]}  Ra4 {[%clk 0:00:03]} 51. Rb6 {[%clk 0:00:02]}  Ra5 {[%clk 0:00:03]} 52. Kxh5 {[%clk 0:00:02]}  Kxa3 {[%clk 0:00:03]} 53. Kg6 {[%clk 0:00:03]}  b4 {[%clk 0:00:04]} 54. h5 {[%clk 0:00:04]}  b3 {[%clk 0:00:03]} 55. h6 {[%clk 0:00:04]}  Ra4 {[%clk 0:00:03]} 56. Rb5 {[%clk 0:00:04]}  Ra8 {[%clk 0:00:02]} 57. h7 {[%clk 0:00:04]}  b2 {[%clk 0:00:02]} 58. Kg7 {[%clk 0:00:02]}  Ka2 {[%clk 0:00:03]} 59. Rxb2+ {[%clk 0:00:01]}  Kxb2 {[%clk 0:00:03]} 60. h8=Q {[%clk 0:00:02]}  Rxh8 {[%clk 0:00:02]} 61. Kxh8 {[%clk 0:00:03]} 1/2-1/2


[Site "https://www.chess.com"]